bitfinex/quotes_ETHUSD_20241006
["timestamp","ask_amount","ask_price","bid_price","bid_amount"]
[1728243273819,0.7776,2448.8,2448.4,4.96106963]
[1728243274029,0.7776,2448.8,2448.4,6.09077689]
[1728243274186,0.7776,2448.8,2448.5,1.69367963]
[1728243274538,0.8048,2449.1,2448.6,5.05102897]
[1728243274887,0.8048,2449.1,2448.7,1.69367963]
[1728243275729,3.8048,2449.1,2448.7,1.69367963]
[1728243275904,3.8048,2449.1,2448.7,5.72519963]
[1728243276224,3.8048,2449.1,2448.8,1.69367963]
[1728243277216,0.8048,2449.1,2448.8,1.69367963]
[1728243277592,0.8048,2449.1,2448.9,1.69367963]
[1728243278291,3.8048,2449.3,2448.9,1.69367963]
[1728243278706,7.07106,2449.3,2448.9,1.69367963]
[1728243279540,3.8048,2449.3,2448.9,1.69367963]
[1728243279741,3.8048,2449.3,2449.0,1.69367963]
[1728243280830,7.07104,2449.3,2449.0,1.69367963]
[1728243281142,3.8048,2449.3,2449.0,1.69367963]
[1728243281344,7.07107,2449.3,2449.0,1.69367963]
[1728243282444,3.26639,2449.2,2449.0,1.69367963]
[1728243282606,3.26639,2449.2,2448.9,1.69367963]
[1728243284104,3.8048,2449.3,2448.9,1.69367963]
[1728243284335,3.8048,2449.3,2449.0,1.69367963]
[1728243284641,7.07104,2449.3,2449.0,1.69367963]
[1728243285045,7.07104,2449.3,2448.9,1.69367963]
[1728243285404,7.07104,2449.3,2448.8,5.5803535]
[1728243285405,7.07104,2449.3,2449.0,1.69367963]
[1728243285647,7.07104,2449.3,2448.9,1.69367963]
[1728243287326,3.8048,2449.3,2448.9,1.69367963]
[1728243287529,0.7568,2449.5,2449.1,2.51507963]
[1728243287730,0.7568,2449.5,2449.2,1.69367963]
[1728243289253,3.26612,2449.4,2449.2,1.69367963]
[1728243289556,0.7568,2449.5,2449.2,1.69367963]
[1728243289921,0.7568,2449.5,2449.1,1.69367963]
[1728243290121,4.02278,2449.5,2449.2,1.69367963]
[1728243290427,0.7568,2449.5,2449.2,1.69367963]
[1728243291467,4.02278,2449.5,2449.2,1.69367963]
[1728243291610,0.7568,2449.5,2449.2,1.69367963]
[1728243291815,3.26623,2449.3,2449.1,1.69367963]
[1728243292052,3.26623,2449.3,2449.0,1.69367963]
[1728243292415,3.2665,2449.1,2449.0,1.69367963]
[1728243292552,3.995475,2449.1,2449.0,1.69367963]
[1728243292734,3.995475,2449.1,2448.9,1.69367963]
[1728243293236,4.02325,2449.2,2448.9,1.69367963]
[1728243293437,4.02325,2449.2,2449.0,1.69367963]
[1728243293658,3.26645,2449.2,2449.0,1.69367963]
[1728243293864,3.0,2449.3,2449.0,1.69367963]
[1728243295226,0.7568,2449.4,2449.0,2.485921]
[1728243295433,0.7568,2449.4,2449.1,1.69367963]
[1728243296521,0.7568,2449.4,2449.0,1.69367963]
[1728243297053,0.7568,2449.4,2449.1,1.69367963]
[1728243298531,0.7568,2449.4,2449.0,1.69367963]
[1728243299043,0.7568,2449.4,2449.1,1.69367963]
[1728243300392,0.7568,2449.4,2449.0,1.69367963]
[1728243300603,5.051799,2449.4,2449.0,1.69367963]
[1728243301264,4.02293,2449.4,2449.0,1.69367963]
[1728243301470,0.7568,2449.4,2449.1,2.51507963]
[1728243301878,3.0,2449.5,2449.1,2.51507963]
[1728243303919,2.68615,2449.7,2449.3,3.26622]
[1728243304085,2.68615,2449.7,2449.3,1.69367963]
[1728243304278,5.95187,2449.7,2449.3,2.48583455]
[1728243304510,3.26584,2449.6,2449.3,1.69367963]
[1728243305334,3.26584,2449.6,2449.2,1.69367963]
[1728243305335,3.26599,2449.5,2449.2,1.69367963]
[1728243305538,3.26623,2449.3,2449.1,1.69367963]
[1728243305722,4.03687117,2449.3,2449.1,1.69367963]
[1728243305921,3.26623,2449.3,2449.0,1.69367963]
[1728243306093,3.0,2449.3,2449.0,1.69367963]
[1728243306291,3.0,2449.3,2449.1,1.69367963]
[1728243307339,3.0,2449.3,2449.0,1.69367963]
[1728243307750,6.26625,2449.3,2449.0,1.69367963]
[1728243308213,3.0,2449.3,2449.0,1.69367963]
[1728243310929,4.03409,2449.4,2449.0,1.69367963]
[1728243310930,0.7679,2449.4,2449.0,1.69367963]
[1728243311130,3.0,2449.5,2449.0,5.74970909]
[1728243312155,3.0,2449.5,2449.1,1.69367963]
[1728243312848,3.0,2449.5,2449.1,4.96015963]
[1728243313166,3.7679,2449.6,2449.1,4.96015963]
[1728243313525,3.0,2449.6,2449.1,1.69367963]
[1728243313750,2.68615,2449.7,2449.3,3.2662]
[1728243313971,5.95187,2449.7,2449.2,3.28811826]
[1728243314673,2.68615,2449.7,2449.2,3.28811826]
[1728243315375,2.68615,2449.7,2449.2,6.55446826]
[1728243315778,2.68615,2449.7,2449.3,2.88963332]
[1728243316097,2.68615,2449.7,2449.3,6.15585332]
[1728243316711,2.68615,2449.7,2449.4,1.69367963]
[1728243317006,2.68615,2449.7,2449.4,4.95975963]
[1728243317486,2.68615,2449.7,2449.5,4.06067]
[1728243317696,7.45,2450.0,2449.6,3.94976725]
[1728243317900,0.7679,2450.2,2449.6,5.72508514]
[1728243318207,0.7679,2450.2,2449.8,0.7948]
[1728243319016,3.7679,2450.2,2449.8,0.7948]
[1728243319175,0.7679,2450.2,2449.8,0.7948]
[1728243319519,3.26505,2450.2,2449.8,0.7948]
[1728243319812,3.26505,2450.2,2449.7,1.69367963]
[1728243319813,3.2654,2450.0,2449.7,1.69367963]
[1728243320019,0.7679,2449.8,2449.5,1.69367963]
[1728243321381,3.26592,2449.6,2449.4,1.69367963]
[1728243321621,3.26592,2449.6,2449.2,2.93242577]
[1728243321622,3.26592,2449.6,2449.3,1.69367963]
[1728243322392,3.995864,2449.6,2449.3,1.69367963]
[1728243322821,0.729944,2449.6,2449.3,1.69367963]
[1728243323035,6.2657,2449.7,2449.3,1.69367963]
[1728243323404,6.2657,2449.7,2449.2,2.48847963]
[1728243323847,3.0,2449.7,2449.3,1.69367963]
[1728243326448,4.03075,2450.0,2449.5,0.775]
[1728243326650,4.03075,2450.0,2449.5,2.46867963]
[1728243328107,4.03075,2450.0,2449.5,3.5935116]
[1728243328564,4.03075,2450.0,2449.4,1.69367963]
[1728243328565,3.26558,2449.8,2449.4,1.69367963]
[1728243328848,3.0,2449.5,2449.3,1.69367963]
[1728243332195,3.26596,2449.6,2449.3,1.69367963]
[1728243332399,3.7654,2449.9,2449.4,2.46867963]
[1728243332695,7.03093,2449.9,2449.4,2.46867963]
[1728243332907,3.7654,2449.9,2449.5,1.69367963]
[1728243333064,3.0,2449.9,2449.5,1.69367963]
[1728243333265,6.26549,2449.9,2449.5,1.69367963]
[1728243333503,0.7654,2449.7,2449.5,1.69367963]
[1728243333711,3.26583,2449.6,2449.4,1.69367963]
[1728243334268,0.7654,2449.7,2449.4,1.69367963]
[1728243334702,3.26566,2449.8,2449.4,1.69367963]
[1728243335909,3.26579,2449.7,2449.4,1.69367963]
[1728243336112,3.0,2449.6,2449.4,1.69367963]
[1728243336416,4.295304,2449.8,2449.4,1.69367963]
[1728243336417,3.0,2449.7,2449.4,1.69367963]
[1728243336782,4.03136,2449.6,2449.4,1.69367963]
[1728243336979,0.703136,2449.5,2449.4,1.69367963]
[1728243337227,4.03136,2449.6,2449.4,1.69367963]
[1728243337396,4.03134,2449.6,2449.3,1.69367963]
[1728243338986,3.0,2449.7,2449.3,1.69367963]
[1728243339320,3.0,2449.7,2449.4,1.69367963]
[1728243339817,6.26579,2449.7,2449.4,1.69367963]
[1728243340026,3.26585,2449.6,2449.4,1.69367963]
[1728243340185,3.26585,2449.6,2449.3,2.46867963]
[1728243340386,3.26585,2449.6,2449.4,1.69367963]
[1728243341181,3.26585,2449.6,2449.3,2.46867963]
[1728243341384,1.029689,2449.6,2449.3,1.69367963]
[1728243341590,3.2661,2449.4,2449.3,1.69367963]
[1728243342118,3.2661,2449.4,2449.2,1.69367963]
[1728243342319,3.0,2449.3,2449.2,1.69367963]
[1728243342693,3.0,2449.3,2449.0,2.13981599]
[1728243342694,6.26625,2449.3,2449.1,1.69367963]
[1728243343223,7.03177,2449.2,2449.1,1.69367963]
[1728243343395,8.061572,2449.2,2449.0,1.69367963]
[1728243343593,3.7654,2449.4,2449.0,1.69367963]
[1728243343806,3.0,2449.4,2449.1,1.69367963]
[1728243344239,0.7654,2449.6,2449.2,0.7834]
[1728243344442,0.7685,2449.8,2449.3,1.69367963]
[1728243344726,0.7685,2449.8,2449.4,1.69367963]
[1728243344918,0.7685,2449.8,2449.4,2.15548214]
[1728243345305,0.7685,2450.0,2449.4,2.15548214]
[1728243345635,4.03382,2450.0,2449.5,2.47707963]
[1728243345932,0.7685,2450.0,2449.6,1.69367963]
[1728243346128,0.7685,2450.0,2449.5,2.47707963]
[1728243346292,3.26546,2449.9,2449.5,3.31167639]
[1728243346494,6.531,2449.9,2449.5,3.31167639]
[1728243346905,3.26546,2449.9,2449.5,3.31167639]
[1728243348442,0.7685,2450.0,2449.5,3.31167639]
[1728243348812,4.03382,2450.0,2449.5,3.31167639]
[1728243349027,3.26547,2449.9,2449.5,3.31167639]
[1728243351702,0.7685,2450.0,2449.5,3.31167639]
[1728243352031,3.0,2449.9,2449.5,3.31167639]
[1728243352333,3.0,2450.0,2449.6,2.28499189]
[1728243352508,6.26532,2450.0,2449.6,2.28499189]
[1728243354442,6.26532,2450.0,2449.6,1.69367963]
[1728243355500,3.0,2450.0,2449.7,0.7627]
[1728243355821,3.26521,2450.1,2449.7,2.45637963]
[1728243358306,3.0,2450.2,2449.8,2.45637963]
[1728243358507,3.0,2450.2,2449.9,0.24563796]
[1728243359350,3.26495,2450.3,2449.9,0.24563796]
[1728243359535,3.26514,2450.2,2449.9,0.24563796]
[1728243360662,3.26514,2450.2,2449.7,2.13904033]
[1728243360663,3.26505,2450.2,2449.7,1.69367963]
[1728243360987,3.26557,2449.8,2449.6,2.45637963]
[1728243361683,3.2657,2449.7,2449.6,1.69367963]
[1728243361882,3.2657,2449.7,2449.5,1.69367963]
[1728243362582,3.26557,2449.8,2449.5,1.69367963]
[1728243362936,3.0,2450.1,2449.6,2.45637963]
[1728243363151,3.2651,2450.2,2449.7,2.5380136]
[1728243363577,3.26493,2450.3,2449.7,2.45637963]
[1728243363885,3.26552,2449.9,2449.6,1.69367963]
[1728243364487,3.26552,2449.9,2449.5,2.45637963]
[1728243364983,3.26552,2449.9,2449.5,2.53802053]
[1728243365286,3.26552,2449.9,2449.5,2.45637963]
[1728243366390,3.26552,2449.9,2449.5,3.98162848]
[1728243366873,3.26531,2450.0,2449.6,1.69367963]
[1728243367077,3.26531,2450.0,2449.6,1.77531913]
[1728243367256,3.26531,2450.0,2449.6,1.69367963]
[1728243367466,3.26531,2450.0,2449.6,2.64321937]
[1728243367882,6.2652,2450.1,2449.6,2.72485661]
[1728243368081,3.26495,2450.3,2449.9,0.8254]
[1728243368404,4.07315,2450.3,2449.9,0.8254]
[1728243368719,4.480465,2450.3,2449.9,0.8254]
[1728243368927,3.26518,2450.1,2449.9,0.8254]
[1728243369279,3.26505,2450.2,2449.9,0.8254]
[1728243369817,3.0,2450.4,2449.9,3.37433229]
[1728243370020,3.0,2450.4,2450.0,0.90703224]
[1728243370327,3.0,2450.5,2450.2,0.8254]
[1728243370494,5.95073,2450.6,2450.2,0.8254]
[1728243371078,2.68615,2450.6,2450.2,0.90701937]
[1728243371283,2.68615,2450.6,2450.3,3.37433229]
[1728243371530,3.26416,2450.9,2450.5,4.19973229]
[1728243372113,10.71387,2451.1,2450.7,0.8254]
[1728243372284,3.26387,2451.1,2450.7,4.19973229]
[1728243372620,3.26363,2451.3,2450.7,4.19973229]
[1728243373324,3.2638,2451.2,2450.7,4.19973229]
[1728243373519,3.26385,2451.1,2450.8,0.41997323]
[1728243374042,3.26371,2451.2,2450.8,0.50156978]
[1728243374337,3.26348,2451.4,2451.1,3.37433229]
[1728243374637,3.26357,2451.3,2450.9,4.17653229]
[1728243374815,3.26343,2451.5,2451.0,0.08158871]
[1728243375186,3.26311,2451.7,2451.2,0.8022]
[1728243375423,3.26311,2451.7,2451.2,0.88378122]
[1728243376128,3.26291,2451.8,2451.3,3.37433229]
[1728243376354,3.26291,2451.8,2451.4,0.08157723]
[1728243377331,3.2628,2451.9,2451.4,0.08157723]
[1728243377670,3.26306,2451.7,2451.4,0.08157723]
[1728243377832,3.2632,2451.6,2451.4,0.08157723]
[1728243378174,3.2632,2451.6,2451.3,0.83377173]
[1728243378370,3.26334,2451.5,2451.3,0.75219335]
[1728243378535,3.26334,2451.5,2451.2,0.8022]
[1728243378730,4.16713229,2451.7,2451.0,0.8022]
[1728243378932,3.2641,2450.9,2450.8,0.8022]
[1728243383586,3.2641,2450.9,2450.8,0.80073694]
[1728243384827,3.2641,2450.9,2450.4,3.37433229]
[1728243384990,3.2641,2450.9,2450.4,4.77726052]
[1728243386709,3.2641,2450.9,2450.4,5.55246052]
[1728243397630,0.8051,2450.8,2450.2,0.7752]
[1728243397925,3.26472,2450.5,2450.0,13.23321192]
[1728243398076,3.26472,2450.5,2450.0,11.53953229]
[1728243398967,0.8051,2450.4,2450.0,7.39]
[1728243399185,3.26501,2450.3,2450.0,7.39]
[1728243399481,3.26501,2450.3,2449.8,5.84321192]
[1728243399687,3.26501,2450.3,2449.8,4.14953229]
[1728243399989,1.131572,2450.4,2449.8,7.41501229]
[1728243400152,3.8051,2450.6,2450.1,3.26511]
[1728243401179,3.8051,2450.6,2450.0,6.63962229]
[1728243401749,3.8051,2450.6,2450.1,0.08161526]
[1728243402277,3.8051,2450.6,2450.2,0.85681453]
[1728243402886,0.8051,2450.6,2450.2,0.85681453]
[1728243403248,4.06961,2450.6,2450.2,0.85681453]
[1728243403452,3.26443,2450.7,2450.2,4.89916797]
[1728243405489,3.26443,2450.7,2450.2,1.50215162]
[1728243405655,3.2646,2450.6,2450.0,8.33322192]
[1728243408489,3.2646,2450.6,2450.1,2.51767963]
[1728243410076,3.2646,2450.6,2450.1,0.824]
[1728243410276,3.2646,2450.6,2450.1,2.51767963]
[1728243411506,3.26465,2450.5,2450.1,2.51767963]
[1728243412276,3.26465,2450.5,2450.2,1.69367963]
[1728243412676,0.7587,2450.4,2450.1,1.69367963]
[1728243413001,3.2649,2450.3,2450.0,1.69367963]
[1728243414967,6.5299,2450.3,2450.0,1.69367963]
[1728243415269,0.72886,2450.2,2450.0,1.69367963]
[1728243415602,0.72886,2450.2,2450.1,1.69367963]
[1728243417791,3.99389,2450.2,2450.1,1.69367963]
[1728243418306,0.72886,2450.2,2450.1,1.69367963]
[1728243421398,3.2649,2450.3,2450.1,1.69367963]
[1728243421598,0.7587,2450.6,2450.2,0.08162641]
[1728243421823,3.26472,2450.5,2450.2,1.69367963]
[1728243422113,3.26472,2450.5,2450.3,1.69367963]
[1728243422403,0.7587,2450.6,2450.3,1.69367963]
[1728243422881,4.02324,2450.6,2450.3,1.69367963]
[1728243423694,3.26464,2450.5,2450.3,1.69367963]
[1728243424410,3.26464,2450.5,2450.4,1.69367963]
[1728243427385,3.26464,2450.5,2450.3,2.13527979]
[1728243427386,3.26477,2450.4,2450.3,1.69367963]
[1728243432300,3.2649,2450.3,2450.2,2.13859305]
[1728243433143,7.15408857,2450.3,2450.2,1.71167677]
[1728243433431,6.26503,2450.2,2450.1,1.71167677]
[1728243435649,6.26503,2450.2,2450.0,1.71167677]
[1728243435808,7.0753,2450.0,2449.9,1.71167677]
[1728243435992,6.63950229,2450.1,2449.7,1.71167677]
[1728243435993,7.07543,2449.9,2449.7,1.71167677]
[1728243436195,6.2657,2449.7,2449.6,1.71167677]
[1728243436496,6.2657,2449.7,2449.5,1.71276372]
[1728243436711,3.26583,2449.6,2449.5,1.71276372]
[1728243436913,3.26583,2449.6,2449.4,1.71276372]
[1728243437107,3.0,2449.7,2449.4,1.71276372]
[1728243437349,3.26557,2449.8,2449.5,2.49216372]
[1728243437553,3.26557,2449.8,2449.5,0.7794]
[1728243437735,3.26557,2449.8,2449.5,2.49216372]
[1728243438419,3.26557,2449.8,2449.5,0.7794]
[1728243438819,3.26557,2449.8,2449.5,2.49216372]
[1728243439550,3.26557,2449.8,2449.5,0.7794]
[1728243440312,3.26557,2449.8,2449.5,1.588126]
[1728243442319,3.26537,2450.0,2449.5,0.7794]
[1728243442521,3.0,2449.9,2449.6,0.08163819]
[1728243442746,3.26537,2450.0,2449.5,0.7794]
[1728243442997,3.26508,2450.2,2449.7,0.7794]
[1728243443175,6.53024,2450.2,2449.7,0.7794]
[1728243443317,6.53024,2450.2,2449.7,1.90626578]
[1728243444018,3.26532,2450.0,2449.7,1.90626578]
[1728243444269,3.26532,2450.0,2449.7,0.7794]
[1728243445118,3.26508,2450.2,2449.7,0.7794]
[1728243445320,6.53024,2450.2,2449.7,0.7794]
[1728243445515,3.26508,2450.2,2449.7,0.7794]
[1728243445717,3.26508,2450.2,2449.6,1.71276372]
[1728243445718,3.26541,2450.0,2449.6,1.71276372]
[1728243445951,3.26541,2450.0,2449.5,2.53186372]
[1728243446152,3.26541,2450.0,2449.5,4.4017165]
[1728243448369,3.26541,2450.0,2449.5,2.53186372]
[1728243448533,0.7907,2450.1,2449.5,2.53186372]
[1728243448734,13.82433229,2450.5,2449.3,9.52640992]
[1728243448735,3.26571,2449.7,2449.4,1.71276372]
[1728243448935,3.26597,2449.5,2449.4,1.71276372]
[1728243449239,3.26583,2449.6,2449.3,1.71276372]
[1728243450377,3.671483,2449.6,2449.3,1.71276372]
[1728243451731,6.937423,2449.6,2449.3,1.71276372]
[1728243451940,3.671483,2449.6,2449.3,1.71276372]
[1728243453332,3.26583,2449.6,2449.3,1.71276372]
[1728243456159,0.7907,2449.7,2449.3,1.71276372]
[1728243457082,0.7907,2449.9,2449.5,1.71276372]
[1728243457279,3.0,2450.0,2449.6,5.06020295]
[1728243457588,11.50588,2450.1,2449.6,1.71276372]
[1728243457792,8.2407,2450.1,2449.6,1.71276372]
[1728243458397,8.2407,2450.1,2449.6,4.97857372]
[1728243458699,8.2407,2450.1,2449.7,0.8191]
[1728243459396,11.50595,2450.1,2449.7,0.8191]
[1728243459553,8.2407,2450.1,2449.7,2.53186372]
[1728243459755,7.45,2450.1,2449.7,2.53186372]
[1728243460069,7.45,2450.1,2449.7,6.59088101]
[1728243460481,3.26501,2450.3,2449.7,6.59088101]
[1728243460892,3.26508,2450.2,2449.7,3.32520101]
[1728243461187,3.26508,2450.2,2449.7,6.59089101]
[1728243462297,3.26508,2450.2,2449.8,1.71276372]
[1728243463002,3.26508,2450.2,2449.8,2.26276372]
[1728243463211,3.26508,2450.2,2449.8,0.55]
[1728243463417,3.26508,2450.2,2449.8,2.26276372]
[1728243465918,3.2652,2450.1,2449.8,1.71276372]
[1728243466322,3.26543,2449.9,2449.7,1.71276372]
[1728243466516,7.32561,2450.0,2449.7,1.71276372]
[1728243466716,3.26545,2449.9,2449.7,1.71276372]
[1728243466891,3.26545,2449.9,2449.6,1.71276372]
[1728243467102,3.26545,2449.9,2449.7,1.71276372]
[1728243467633,3.26545,2449.9,2449.6,1.71276372]
[1728243468537,4.06021,2450.0,2449.7,1.71276372]
[1728243469015,7.32561,2450.0,2449.7,1.71276372]
[1728243469220,8.058171,2450.0,2449.6,1.71276372]
[1728243469537,4.792771,2450.0,2449.6,1.71276372]
[1728243470321,8.058161,2450.0,2449.6,1.71276372]
[1728243470741,4.792771,2450.0,2449.6,1.71276372]
[1728243471404,8.058181,2450.0,2449.6,1.71276372]
[1728243471744,3.2656,2449.8,2449.6,1.71276372]
[1728243472030,0.8058181,2449.9,2449.5,2.13674186]
[1728243472031,4.06073,2449.6,2449.5,2.13674186]
[1728243472331,3.26597,2449.5,2449.4,2.13674186]
[1728243472532,3.26597,2449.5,2449.4,2.13921435]
[1728243472735,4.06074,2449.6,2449.4,2.13921435]
[1728243472944,3.26584,2449.6,2449.5,1.71130492]
[1728243473099,4.06053,2449.8,2449.5,1.71130492]
[1728243473299,3.998219,2449.8,2449.5,1.71130492]
[1728243474237,3.998219,2449.8,2449.6,1.71130492]
[1728243475037,3.26571,2449.7,2449.6,1.71130492]
[1728243475339,3.26558,2449.8,2449.6,1.71130492]
[1728243475552,6.53125,2449.8,2449.6,1.71130492]
[1728243475700,3.26558,2449.8,2449.6,1.71130492]
[1728243476735,3.26558,2449.8,2449.7,1.71130492]
[1728243480753,3.26537,2450.0,2449.6,2.9634072]
[1728243480960,6.53027,2450.2,2449.8,1.71310791]
[1728243481255,6.53027,2450.2,2449.9,1.71310791]
[1728243481417,3.26523,2450.1,2449.9,1.71310791]
[1728243483165,3.2653,2450.0,2449.9,1.71310791]
[1728243484528,7.717741,2450.0,2449.9,1.71310791]
[1728243484829,3.26557,2449.8,2449.7,1.71310791]
[1728243486637,3.2657,2449.7,2449.6,1.71310791]
[1728243486854,4.32531,2449.7,2449.6,1.71310791]
[1728243489480,7.32531,2449.7,2449.6,1.71310791]
[1728243489674,6.26583,2449.6,2449.5,1.71310791]
[1728243489945,7.06523,2449.6,2449.5,1.71310791]
[1728243490144,3.26597,2449.5,2449.4,1.71310791]
[1728243490369,7.06537,2449.5,2449.4,1.71310791]
[1728243490781,6.2661,2449.4,2449.3,1.71310791]
[1728243492041,6.26623,2449.3,2449.1,1.71310791]
[1728243492268,7.06577,2449.2,2449.1,1.71310791]
[1728243492571,7.718811,2449.2,2449.1,1.71310791]
[1728243493172,6.2665,2449.1,2449.0,1.71310791]
[1728243495181,6.2665,2449.1,2448.8,1.71310791]
[1728243495572,4.38929888,2449.6,2449.0,0.55]
[1728243495573,6.53212,2449.5,2449.0,0.55]
[1728243495790,3.26618,2449.4,2449.0,2.26310791]
[1728243496016,3.26618,2449.4,2449.1,0.51893777]
[1728243496309,3.26618,2449.4,2449.0,2.26310791]
[1728243496791,3.26603,2449.5,2449.0,2.34476747]
[1728243496957,3.26614,2449.4,2449.1,0.7864]
[1728243497164,3.26603,2449.5,2449.1,0.7864]
[1728243499809,3.26612,2449.4,2449.1,0.7864]
[1728243500311,3.26612,2449.4,2449.2,0.55]
[1728243503191,3.26603,2449.5,2449.2,0.55]
[1728243503524,3.26584,2449.6,2449.2,0.63165469]
[1728243503724,3.26584,2449.6,2449.2,0.86311626]
[1728243504177,3.26584,2449.6,2449.2,2.57622417]
[1728243505678,3.26584,2449.6,2449.2,0.86311626]
[1728243505883,3.26604,2449.5,2449.2,0.55]
[1728243508301,6.53162,2449.7,2449.1,2.49950791]
[1728243508490,3.26618,2449.4,2449.1,2.49950791]
[1728243508682,3.26618,2449.4,2449.2,1.71310791]
[1728243509088,3.26618,2449.4,2449.1,2.49950791]
[1728243509288,3.26618,2449.4,2449.2,1.71310791]
[1728243510422,3.26623,2449.3,2449.2,1.71310791]
[1728243510753,3.26623,2449.3,2449.1,3.04705459]
[1728243510754,3.26637,2449.2,2449.1,3.04705459]
[1728243510917,3.26637,2449.2,2449.0,1.71065459]
[1728243511118,3.2665,2449.1,2449.0,1.71065459]
[1728243511717,3.2665,2449.1,2448.9,1.71065459]
[1728243511718,3.26663,2449.0,2448.9,1.71065459]
[1728243512917,3.2665,2449.1,2448.8,2.13888682]
[1728243513118,3.26625,2449.3,2449.0,1.71114699]
[1728243513427,3.26625,2449.3,2449.0,2.53794699]
[1728243513841,3.26637,2449.2,2449.0,1.71114699]
[1728243514036,4.01807,2449.2,2449.0,1.71114699]
[1728243514424,3.2665,2449.1,2449.0,1.71114699]
[1728243515021,3.26663,2449.0,2448.9,1.71114699]
[1728243515725,3.995113,2449.0,2448.9,1.71114699]
[1728243516031,3.26677,2448.9,2448.8,1.71114699]
[1728243517126,3.2669,2448.8,2448.7,1.71114699]
[1728243519021,3.2669,2448.8,2448.6,1.71114699]
[1728243520856,3.26656,2449.1,2448.7,0.823]
[1728243521160,3.26656,2449.1,2448.7,3.08414699]
[1728243521998,3.26679,2448.9,2448.7,3.08414699]
[1728243522136,3.26679,2448.9,2448.7,1.373]
[1728243522846,3.26679,2448.9,2448.7,3.08414699]
[1728243523080,3.2669,2448.8,2448.6,1.71114699]
[1728243524641,3.2669,2448.8,2448.7,1.71114699]
[1728243524875,3.2669,2448.8,2448.6,1.71114699]
[1728243525262,3.2669,2448.8,2448.7,1.71114699]
[1728243525946,6.53342,2449.0,2448.7,1.71114699]
[1728243526285,7.268402,2449.0,2448.7,1.71114699]
[1728243526468,3.2669,2448.8,2448.7,1.71114699]
[1728243533246,4.001672,2449.0,2448.7,1.71114699]
[1728243533247,3.26669,2449.0,2448.8,0.752]
[1728243533450,3.26669,2449.0,2448.8,2.46314699]
[1728243534649,3.26669,2449.0,2448.9,1.71114699]
[1728243534856,6.26651,2449.1,2448.9,1.71114699]
[1728243537612,3.26663,2449.0,2448.9,1.71114699]
[1728243550237,6.2665,2449.1,2448.8,2.89339278]
[1728243550439,6.2665,2449.1,2449.0,1.7133828]
[1728243551038,3.2665,2449.1,2449.0,1.7133828]
[1728243551194,3.26644,2449.2,2449.0,1.7133828]
[1728243551395,3.26627,2449.3,2449.1,1.7133828]
[1728243551595,3.26627,2449.3,2449.2,1.7133828]
[1728243552727,3.26616,2449.4,2449.2,1.7133828]
[1728243553427,6.53239,2449.4,2449.2,1.7133828]
[1728243553629,3.26623,2449.3,2449.2,1.7133828]
[1728243554164,3.919469,2449.3,2449.2,1.7133828]
[1728243554329,5.47737771,2449.3,2449.1,1.7133828]
[1728243554525,4.09267,2449.2,2449.1,1.7133828]
[1728243554751,3.2665,2449.1,2449.0,1.7133828]
[1728243555253,6.2665,2449.1,2449.0,1.7133828]
[1728243555461,7.52353177,2449.1,2449.0,1.7133828]
[1728243558448,7.52353177,2449.1,2449.0,1.5633828]
[1728243560097,3.26663,2449.0,2448.9,2.1437589]
[1728243563107,3.26663,2449.0,2448.9,2.14413015]
[1728243563805,7.52354177,2449.1,2448.9,2.14413015]
[1728243564100,0.83498418,2449.0,2448.9,2.14413015]
[1728243567717,6.26651,2449.1,2448.9,2.14413015]
[1728243568014,6.26651,2449.1,2449.0,1.71540151]
[1728243568871,6.26651,2449.1,2448.9,2.14413015]
[1728243569108,6.26651,2449.1,2449.0,1.71535422]
[1728243570011,6.26651,2449.1,2448.9,2.14413015]
[1728243570391,6.26651,2449.1,2449.0,2.14413015]
[1728243570919,3.0,2449.1,2449.0,2.14413015]
[1728243571074,3.0,2449.2,2449.0,2.14413015]
[1728243571276,3.0,2449.2,2449.1,1.71532932]
[1728243573107,6.26637,2449.2,2449.1,1.71532932]
[1728243575860,6.26637,2449.2,2449.1,2.14418491]
[1728243576301,6.26637,2449.2,2449.0,2.14418491]
[1728243576501,3.2663,2449.3,2449.1,2.14418491]
[1728243576728,6.53264,2449.3,2449.2,1.71528558]
[1728243579008,7.32394,2449.3,2449.2,1.71528558]
[1728243588341,6.53264,2449.3,2449.2,1.71528558]
[1728243588639,3.2663,2449.3,2449.1,2.14411159]
[1728243588838,3.26637,2449.2,2449.1,2.1440392]
[1728243590103,3.26637,2449.2,2449.1,2.14399508]
[1728243590648,3.2663,2449.3,2449.1,2.95699508]
[1728243591349,3.0,2449.4,2449.1,2.92388763]
[1728243591516,3.0,2449.4,2449.3,2.14368167]
[1728243592109,3.26604,2449.5,2449.4,0.813]
[1728243592310,3.26604,2449.5,2449.4,2.52757611]
[1728243592509,3.26604,2449.5,2449.4,0.813]
[1728243593109,3.26583,2449.6,2449.4,2.52756393]
[1728243593610,3.26583,2449.6,2449.5,1.71456393]
[1728243594237,3.26572,2449.7,2449.4,2.52756393]
[1728243594556,3.26572,2449.7,2449.5,1.71456393]
[1728243595210,6.53153,2449.7,2449.5,1.71456393]
[1728243595422,3.26583,2449.6,2449.5,1.71456393]
[1728243597169,3.26583,2449.6,2449.4,2.52756393]
[1728243598816,3.26583,2449.6,2449.4,0.813]
[1728243600155,3.26572,2449.7,2449.4,2.52756393]
[1728243601575,3.26544,2449.9,2449.4,3.14147535]
[1728243601776,3.26544,2449.9,2449.6,0.7603]
[1728243602092,5.95138,2450.1,2449.6,0.7603]
[1728243602295,5.95134,2450.1,2449.8,0.7603]
[1728243603076,2.68615,2450.1,2449.8,2.47486393]
[1728243603288,2.68615,2450.1,2450.0,0.7603]
[1728243606159,5.95135,2450.1,2449.8,1.3725]
[1728243606355,3.26557,2449.8,2449.7,1.71456393]
[1728243606588,3.26557,2449.8,2449.5,1.71456393]
[1728243606856,3.26574,2449.7,2449.5,1.71456393]
[1728243608907,3.26557,2449.8,2449.5,1.71456393]
[1728243609223,3.997084,2449.8,2449.5,1.71456393]
[1728243609715,3.26573,2449.7,2449.5,1.71456393]
[1728243610088,3.26583,2449.6,2449.4,1.71456393]